[Event "Late-Titled-Tuesday-Blitz-September-26-2023"]
[Site "Chess.com"]
[Date "2023.09.26"]
[Round "2"]
[White "melissa_guez"]
[Black "ExchangeAB"]
[Result "1-0"]
[WhiteElo "2150"]
[BlackElo "2419"]
[TimeControl "180+1"]
[EndTime "14:17:18 PDT"]
[Termination "melissa_guez won by resignation"]

1. e4 {[%clk 0:02:58.8]} 1... c6 {[%clk 0:03:00.9]} 2. c4 {[%clk 0:02:55.5]}
2... d5 {[%clk 0:03:01.8]} 3. exd5 {[%clk 0:02:53]} 3... cxd5 {[%clk 0:03:02.7]}
4. cxd5 {[%clk 0:02:53.4]} 4... Nf6 {[%clk 0:03:01.8]} 5. Qa4+ {[%clk
0:02:47.2]} 5... Nbd7 {[%clk 0:03:00.7]} 6. Nc3 {[%clk 0:02:45.3]} 6... g6
{[%clk 0:03:00.5]} 7. Bc4 {[%clk 0:02:44.5]} 7... Bg7 {[%clk 0:03:00.3]} 8. Nf3
{[%clk 0:02:44.8]} 8... O-O {[%clk 0:03:00.5]} 9. O-O {[%clk 0:02:44.7]} 9...
Nb6 {[%clk 0:02:59.1]} 10. Qb3 {[%clk 0:02:40.1]} 10... Nxc4 {[%clk 0:02:58.5]}
11. Qxc4 {[%clk 0:02:40]} 11... Bf5 {[%clk 0:02:56.2]} 12. d4 {[%clk 0:02:18.9]}
12... Rc8 {[%clk 0:02:54.3]} 13. Qb5 {[%clk 0:02:18.7]} 13... b6 {[%clk
0:02:34.4]} 14. Ne5 {[%clk 0:02:11]} 14... Bd7 {[%clk 0:02:07.2]} 15. Qb3 {[%clk
0:01:56.7]} 15... Ng4 {[%clk 0:01:58.4]} 16. f4 {[%clk 0:01:33.8]} 16... Nh6
{[%clk 0:01:44.8]} 17. Be3 {[%clk 0:00:50.8]} 17... Nf5 {[%clk 0:01:44.3]} 18.
Bf2 {[%clk 0:00:50.6]} 18... Nd6 {[%clk 0:01:21.6]} 19. Rfe1 {[%clk 0:00:36.2]}
19... f6 {[%clk 0:01:18.6]} 20. Nxd7 {[%clk 0:00:26.2]} 20... Qxd7 {[%clk
0:01:19.5]} 21. Ne4 {[%clk 0:00:24.7]} 21... Nxe4 {[%clk 0:01:18]} 22. Rxe4
{[%clk 0:00:25.6]} 22... Rfd8 {[%clk 0:01:17.6]} 23. d6+ {[%clk 0:00:19.1]}
23... e6 {[%clk 0:01:16.6]} 24. Rxe6 {[%clk 0:00:18.2]} 24... Kh8 {[%clk
0:01:06.1]} 25. f5 {[%clk 0:00:15.6]} 25... gxf5 {[%clk 0:01:02.5]} 26. Bg3
{[%clk 0:00:15.8]} 26... Re8 {[%clk 0:00:52.6]} 27. Rae1 {[%clk 0:00:15.6]}
27... Rxe6 {[%clk 0:00:51.5]} 28. Qxe6 {[%clk 0:00:15.1]} 28... Qxe6 {[%clk
0:00:32.5]} 29. Rxe6 {[%clk 0:00:16]} 29... Kg8 {[%clk 0:00:33.3]} 30. d7 {[%clk
0:00:15]} 30... Rc1+ {[%clk 0:00:24]} 31. Re1 {[%clk 0:00:14.7]} 1-0

[Event "Late-Titled-Tuesday-Blitz-September-26-2023"]
[Site "Chess.com"]
[Date "2023.09.26"]
[Round "2"]
[White "ErikRonka"]
[Black "MeisterJabo"]
[Result "0-1"]
[WhiteElo "2487"]
[BlackElo "2320"]
[TimeControl "180+1"]
[EndTime "14:17:20 PDT"]
[Termination "MeisterJabo won on time"]

1. e4 {[%clk 0:03:00.9]} 1... e5 {[%clk 0:02:56.6]} 2. Nc3 {[%clk 0:02:58.8]}
2... Nf6 {[%clk 0:02:51]} 3. Bc4 {[%clk 0:02:58.6]} 3... Nc6 {[%clk 0:02:50]} 4.
d3 {[%clk 0:02:58.2]} 4... Bc5 {[%clk 0:02:48.8]} 5. f4 {[%clk 0:02:57.8]} 5...
d6 {[%clk 0:02:42.6]} 6. Nf3 {[%clk 0:02:58.1]} 6... Bg4 {[%clk 0:02:38.1]} 7.
Na4 {[%clk 0:02:57.7]} 7... Nd4 {[%clk 0:02:37.5]} 8. Nxc5 {[%clk 0:02:56.4]}
8... dxc5 {[%clk 0:02:32]} 9. fxe5 {[%clk 0:02:09.3]} 9... Nd7 {[%clk
0:02:30.1]} 10. Bf4 {[%clk 0:01:40.5]} 10... Qe7 {[%clk 0:01:59.9]} 11. c3
{[%clk 0:01:25.9]} 11... Nc6 {[%clk 0:01:40.7]} 12. d4 {[%clk 0:01:23.4]} 12...
cxd4 {[%clk 0:01:40.5]} 13. O-O {[%clk 0:01:13.7]} 13... Ndxe5 {[%clk
0:01:32.4]} 14. Bxe5 {[%clk 0:01:01]} 14... Nxe5 {[%clk 0:01:33.3]} 15. cxd4
{[%clk 0:00:47.1]} 15... Nxf3+ {[%clk 0:01:25.4]} 16. gxf3 {[%clk 0:00:47.1]}
16... Bh3 {[%clk 0:01:25.7]} 17. Rf2 {[%clk 0:00:41.8]} 17... O-O-O {[%clk
0:01:23.4]} 18. d5 {[%clk 0:00:31.2]} 18... Rd6 {[%clk 0:01:18.5]} 19. Kh1
{[%clk 0:00:23.2]} 19... Rg6 {[%clk 0:01:16.8]} 20. Qd4 {[%clk 0:00:13.4]} 20...
Kb8 {[%clk 0:01:16]} 21. e5 {[%clk 0:00:05.2]} 21... Re8 {[%clk 0:01:11.4]} 22.
f4 {[%clk 0:00:05.3]} 22... Qb4 {[%clk 0:00:40]} 23. Rd1 {[%clk 0:00:05.5]}
23... Rd8 {[%clk 0:00:20.4]} 24. a3 {[%clk 0:00:04.2]} 24... Qe7 {[%clk
0:00:18.2]} 0-1

[Event "Late-Titled-Tuesday-Blitz-September-26-2023"]
[Site "Chess.com"]
[Date "2023.09.26"]
[Round "2"]
[White "Mariia89"]
[Black "orestn"]
[Result "0-1"]
[WhiteElo "2084"]
[BlackElo "2428"]
[TimeControl "180+1"]
[EndTime "14:17:23 PDT"]
[Termination "orestn won on time"]

1. d4 {[%clk 0:02:54.8]} 1... d5 {[%clk 0:02:59.6]} 2. c4 {[%clk 0:02:55]} 2...
e6 {[%clk 0:03:00.1]} 3. Nc3 {[%clk 0:02:55.5]} 3... Nf6 {[%clk 0:03:00.4]} 4.
Nf3 {[%clk 0:02:56]} 4... Nbd7 {[%clk 0:02:59.5]} 5. Bg5 {[%clk 0:02:56.8]} 5...
h6 {[%clk 0:02:58.6]} 6. Bh4 {[%clk 0:02:56.9]} 6... Be7 {[%clk 0:02:59]} 7. e3
{[%clk 0:02:57.6]} 7... O-O {[%clk 0:02:59]} 8. Bd3 {[%clk 0:02:58.2]} 8... c5
{[%clk 0:02:57.8]} 9. cxd5 {[%clk 0:02:58.4]} 9... Nxd5 {[%clk 0:02:58.2]} 10.
Nxd5 {[%clk 0:02:58]} 10... Bxh4 {[%clk 0:02:53.8]} 11. Nxh4 {[%clk 0:02:49.6]}
11... exd5 {[%clk 0:02:52.9]} 12. Nf3 {[%clk 0:02:49.7]} 12... c4 {[%clk
0:02:53.2]} 13. Bc2 {[%clk 0:02:48.5]} 13... Nf6 {[%clk 0:02:49.8]} 14. Ne5
{[%clk 0:02:45.7]} 14... b5 {[%clk 0:02:46.1]} 15. a4 {[%clk 0:02:40.4]} 15...
b4 {[%clk 0:02:44.2]} 16. O-O {[%clk 0:02:05.4]} 16... a5 {[%clk 0:02:37.5]} 17.
b3 {[%clk 0:01:54.9]} 17... Ba6 {[%clk 0:02:31.2]} 18. Re1 {[%clk 0:01:53.2]}
18... Rc8 {[%clk 0:02:28.7]} 19. Rc1 {[%clk 0:01:46.1]} 19... cxb3 {[%clk
0:02:14.9]} 20. Bxb3 {[%clk 0:01:45.9]} 20... Qd6 {[%clk 0:02:15.3]} 21. Qf3
{[%clk 0:01:31.6]} 21... Rc3 {[%clk 0:01:56.8]} 22. Bc2 {[%clk 0:01:26.7]} 22...
Rfc8 {[%clk 0:01:52.4]} 23. Qf5 {[%clk 0:01:27.3]} 23... b3 {[%clk 0:01:44.6]}
24. Nxf7 {[%clk 0:00:56.7]} 24... Kxf7 {[%clk 0:01:34.4]} 25. Qg6+ {[%clk
0:00:56]} 25... Kf8 {[%clk 0:01:34.8]} 26. e4 {[%clk 0:00:45.5]} 26... dxe4
{[%clk 0:01:30.1]} 27. Bxb3 {[%clk 0:00:41.8]} 27... Rxb3 {[%clk 0:01:19.1]} 28.
Rxc8+ {[%clk 0:00:40]} 28... Bxc8 {[%clk 0:01:19.6]} 29. Rc1 {[%clk 0:00:29.9]}
29... Bd7 {[%clk 0:01:18.1]} 30. h4 {[%clk 0:00:19.8]} 30... Rb2 {[%clk
0:01:05.3]} 31. Rc4 {[%clk 0:00:08.3]} 31... Rb4 {[%clk 0:01:01.7]} 32. Rc1
{[%clk 0:00:07]} 32... Rxd4 {[%clk 0:00:58.9]} 33. g3 {[%clk 0:00:06.5]} 33...
Rd1+ {[%clk 0:00:57.8]} 34. Rxd1 {[%clk 0:00:06.6]} 34... Qxd1+ {[%clk
0:00:57.7]} 35. Kh2 {[%clk 0:00:07.5]} 35... Qd5 {[%clk 0:00:53.3]} 36. h5
{[%clk 0:00:03.3]} 36... Qxh5+ {[%clk 0:00:52.1]} 0-1

[Event "Late-Titled-Tuesday-Blitz-September-26-2023"]
[Site "Chess.com"]
[Date "2023.09.26"]
[Round "2"]
[White "adiosabu"]
[Black "vladislavkovalev"]
[Result "0-1"]
[WhiteElo "2560"]
[BlackElo "2877"]
[TimeControl "180+1"]
[EndTime "14:17:24 PDT"]
[Termination "vladislavkovalev won on time"]

1. e4 {[%clk 0:02:52.8]} 1... e5 {[%clk 0:02:59.5]} 2. Nf3 {[%clk 0:02:52.3]}
2... Nc6 {[%clk 0:02:59.9]} 3. Bb5 {[%clk 0:02:52.6]} 3... a6 {[%clk 0:03:00.5]}
4. Ba4 {[%clk 0:02:52.6]} 4... Nf6 {[%clk 0:03:00.5]} 5. d3 {[%clk 0:02:52.6]}
5... b5 {[%clk 0:02:59.3]} 6. Bb3 {[%clk 0:02:52.1]} 6... Bc5 {[%clk 0:02:59.9]}
7. a4 {[%clk 0:02:51.2]} 7... Rb8 {[%clk 0:02:58.2]} 8. axb5 {[%clk 0:02:50.3]}
8... axb5 {[%clk 0:02:58.4]} 9. O-O {[%clk 0:02:49.6]} 9... d6 {[%clk
0:02:58.1]} 10. Nc3 {[%clk 0:02:47.7]} 10... h6 {[%clk 0:02:58.3]} 11. Nd5
{[%clk 0:02:45]} 11... Nxd5 {[%clk 0:02:53.3]} 12. exd5 {[%clk 0:02:44.9]} 12...
Nd4 {[%clk 0:02:51.4]} 13. Nxd4 {[%clk 0:02:44.6]} 13... Bxd4 {[%clk 0:02:52.3]}
14. c3 {[%clk 0:02:41.2]} 14... Bb6 {[%clk 0:02:52.8]} 15. Be3 {[%clk
0:02:39.4]} 15... Bxe3 {[%clk 0:02:38]} 16. fxe3 {[%clk 0:02:38.6]} 16... O-O
{[%clk 0:02:38.7]} 17. e4 {[%clk 0:02:24.5]} 17... f5 {[%clk 0:02:36.5]} 18. d4
{[%clk 0:02:23.6]} 18... Qe7 {[%clk 0:02:29.5]} 19. dxe5 {[%clk 0:02:15.8]}
19... Qxe5 {[%clk 0:02:29.4]} 20. exf5 {[%clk 0:02:15.6]} 20... Bxf5 {[%clk
0:02:28.6]} 21. Qd2 {[%clk 0:02:10.7]} 21... Bg6 {[%clk 0:02:00]} 22. Rfe1
{[%clk 0:00:59.1]} 22... Qf5 {[%clk 0:02:00.1]} 23. Rf1 {[%clk 0:00:57]} 23...
Qe4 {[%clk 0:01:40.2]} 24. Rfe1 {[%clk 0:00:53.3]} 24... Qh4 {[%clk 0:01:40.3]}
25. Bc2 {[%clk 0:00:44.3]} 25... Bxc2 {[%clk 0:01:35.9]} 26. Qxc2 {[%clk
0:00:45.2]} 26... b4 {[%clk 0:01:31.9]} 27. c4 {[%clk 0:00:39.4]} 27... Qd4+
{[%clk 0:01:31.2]} 28. Kh1 {[%clk 0:00:35.7]} 28... Rf2 {[%clk 0:01:18]} 29. Qg6
{[%clk 0:00:34.7]} 29... Rbf8 {[%clk 0:01:02.5]} 30. h3 {[%clk 0:00:17.9]} 30...
Qxc4 {[%clk 0:00:54.9]} 31. Qe6+ {[%clk 0:00:13.7]} 31... Kh8 {[%clk 0:00:53.2]}
32. Rac1 {[%clk 0:00:14]} 32... Qd4 {[%clk 0:00:44.4]} 33. Rxc7 {[%clk
0:00:11.7]} 33... Rf1+ {[%clk 0:00:44.6]} 34. Rxf1 {[%clk 0:00:11.9]} 34...
Rxf1+ {[%clk 0:00:45.5]} 35. Kh2 {[%clk 0:00:12.8]} 35... Qf4+ {[%clk
0:00:46.3]} 0-1

[Event "Late-Titled-Tuesday-Blitz-September-26-2023"]
[Site "Chess.com"]
[Date "2023.09.26"]
[Round "2"]
[White "ArtemDyachuk"]
[Black "traack"]
[Result "1-0"]
[WhiteElo "2696"]
[BlackElo "2408"]
[TimeControl "180+1"]
[EndTime "14:17:25 PDT"]
[Termination "ArtemDyachuk won by resignation"]

1. e4 {[%clk 0:03:00.9]} 1... c5 {[%clk 0:02:59.5]} 2. Nf3 {[%clk 0:03:00.3]}
2... e6 {[%clk 0:02:57.4]} 3. d4 {[%clk 0:03:00.3]} 3... cxd4 {[%clk 0:02:57.2]}
4. Nxd4 {[%clk 0:03:01.2]} 4... Nc6 {[%clk 0:02:57.5]} 5. Nc3 {[%clk 0:03:01]}
5... Qc7 {[%clk 0:02:56]} 6. Be3 {[%clk 0:02:59.3]} 6... a6 {[%clk 0:02:55.5]}
7. f4 {[%clk 0:02:59.4]} 7... b5 {[%clk 0:02:45.4]} 8. Bd3 {[%clk 0:02:59.1]}
8... Nxd4 {[%clk 0:02:40]} 9. Bxd4 {[%clk 0:03:00]} 9... Qxf4 {[%clk 0:02:39.5]}
10. Rf1 {[%clk 0:02:59.3]} 10... Qc7 {[%clk 0:02:25.6]} 11. Qh5 {[%clk
0:02:32.4]} 11... Nh6 {[%clk 0:01:50.6]} 12. g4 {[%clk 0:02:00.3]} 12... g6
{[%clk 0:01:29.7]} 13. Qh4 {[%clk 0:01:50.4]} 13... Rg8 {[%clk 0:01:00.3]} 14.
g5 {[%clk 0:01:47.9]} 14... Bc5 {[%clk 0:00:59.9]} 15. Bxc5 {[%clk 0:01:33.2]}
15... Qxc5 {[%clk 0:00:59.4]} 16. gxh6 {[%clk 0:01:33.2]} 16... Qe3+ {[%clk
0:00:59.1]} 17. Ne2 {[%clk 0:01:32.5]} 17... Bb7 {[%clk 0:00:57.3]} 18. Qf4
{[%clk 0:01:14.6]} 18... Qxf4 {[%clk 0:00:53.8]} 19. Nxf4 {[%clk 0:01:15.5]}
19... Ke7 {[%clk 0:00:49.7]} 20. O-O-O {[%clk 0:01:13.9]} 20... f6 {[%clk
0:00:42.2]} 21. h4 {[%clk 0:01:11.6]} 21... g5 {[%clk 0:00:40.8]} 22. Nh5 {[%clk
0:01:05]} 22... Rg6 {[%clk 0:00:39.7]} 23. e5 {[%clk 0:00:57.6]} 23... f5 {[%clk
0:00:39.8]} 24. Nf6 {[%clk 0:00:45.9]} 24... gxh4 {[%clk 0:00:35.5]} 25. Bxb5
{[%clk 0:00:31.2]} 25... d5 {[%clk 0:00:22.4]} 26. Bd3 {[%clk 0:00:22.6]} 26...
h3 {[%clk 0:00:19]} 27. Rh1 {[%clk 0:00:19.6]} 27... Rxh6 {[%clk 0:00:19.5]} 28.
Rdg1 {[%clk 0:00:18.3]} 28... Rf8 {[%clk 0:00:17.2]} 29. Rg7+ {[%clk 0:00:16.4]}
29... Rf7 {[%clk 0:00:17.5]} 30. Ng8+ {[%clk 0:00:16.6]} 30... Kf8 {[%clk
0:00:17.5]} 31. Rxf7+ {[%clk 0:00:16.9]} 31... Kxf7 {[%clk 0:00:17.3]} 32. Nxh6+
{[%clk 0:00:16.6]} 32... Kg6 {[%clk 0:00:18]} 33. Rxh3 {[%clk 0:00:17.1]} 1-0

[Event "Late-Titled-Tuesday-Blitz-September-26-2023"]
[Site "Chess.com"]
[Date "2023.09.26"]
[Round "2"]
[White "Jospem"]
[Black "jk13"]
[Result "1-0"]
[WhiteElo "2996"]
[BlackElo "2613"]
[TimeControl "180+1"]
[EndTime "14:17:31 PDT"]
[Termination "Jospem won by resignation"]

1. e4 {[%clk 0:03:00.9]} 1... e5 {[%clk 0:02:58.3]} 2. Nf3 {[%clk 0:03:01.4]}
2... Nc6 {[%clk 0:02:58]} 3. Nc3 {[%clk 0:03:01.4]} 3... Nf6 {[%clk 0:02:57.7]}
4. h3 {[%clk 0:03:01.9]} 4... Bb4 {[%clk 0:02:55.8]} 5. a3 {[%clk 0:03:01]} 5...
Bxc3 {[%clk 0:02:54.9]} 6. dxc3 {[%clk 0:03:01.9]} 6... Nxe4 {[%clk 0:02:47]} 7.
Nxe5 {[%clk 0:03:02.1]} 7... Nxe5 {[%clk 0:02:35.4]} 8. Qd4 {[%clk 0:03:01.1]}
8... O-O {[%clk 0:02:32.4]} 9. Qxe4 {[%clk 0:03:00.9]} 9... Re8 {[%clk
0:02:31.7]} 10. Be3 {[%clk 0:03:00.8]} 10... d5 {[%clk 0:02:23.8]} 11. Qf4
{[%clk 0:03:00.3]} 11... c6 {[%clk 0:02:05.3]} 12. O-O-O {[%clk 0:02:59.5]}
12... Ng6 {[%clk 0:02:02.9]} 13. Qg3 {[%clk 0:02:58]} 13... Qf6 {[%clk
0:02:01.3]} 14. h4 {[%clk 0:02:52.8]} 14... Ne5 {[%clk 0:01:47.3]} 15. Be2
{[%clk 0:02:36.3]} 15... Qg6 {[%clk 0:01:41.5]} 16. Qf4 {[%clk 0:02:30.2]} 16...
Qf5 {[%clk 0:01:26.6]} 17. Rde1 {[%clk 0:02:14.9]} 17... Qxf4 {[%clk 0:01:23.5]}
18. Bxf4 {[%clk 0:02:15.8]} 18... Bd7 {[%clk 0:01:22.5]} 19. h5 {[%clk 0:02:12]}
19... f6 {[%clk 0:01:20.7]} 20. f3 {[%clk 0:01:54.9]} 20... Re7 {[%clk
0:01:20.9]} 21. b3 {[%clk 0:01:50.8]} 21... Rae8 {[%clk 0:01:21]} 22. Kd2 {[%clk
0:01:49.9]} 22... c5 {[%clk 0:01:17.7]} 23. Bg3 {[%clk 0:01:47.2]} 23... Bc6
{[%clk 0:01:15]} 24. a4 {[%clk 0:01:36.1]} 24... b6 {[%clk 0:01:11.8]} 25. Bf2
{[%clk 0:01:31.8]} 25... h6 {[%clk 0:01:08.1]} 26. Rhf1 {[%clk 0:01:32]} 26...
Nf7 {[%clk 0:01:06.4]} 27. Bd3 {[%clk 0:01:31.6]} 27... Rxe1 {[%clk 0:01:06.2]}
28. Bxe1 {[%clk 0:01:32.5]} 28... Kf8 {[%clk 0:01:05.1]} 29. Bg3 {[%clk
0:01:32.4]} 29... Ne5 {[%clk 0:01:04.8]} 30. Be2 {[%clk 0:01:32.4]} 30... Re7
{[%clk 0:01:04.7]} 31. a5 {[%clk 0:01:28.5]} 31... Be8 {[%clk 0:01:04.1]} 32.
axb6 {[%clk 0:01:27.5]} 32... axb6 {[%clk 0:01:05]} 33. Rh1 {[%clk 0:01:18.6]}
33... Ra7 {[%clk 0:00:53.7]} 34. Bf2 {[%clk 0:01:19]} 34... Ke7 {[%clk 0:00:52]}
35. f4 {[%clk 0:01:16.7]} 35... Nf7 {[%clk 0:00:49.5]} 36. Bf3 {[%clk
0:01:13.8]} 36... Bc6 {[%clk 0:00:47.3]} 37. Re1+ {[%clk 0:01:13.1]} 37... Kf8
{[%clk 0:00:41.9]} 38. b4 {[%clk 0:01:06.9]} 38... Nd6 {[%clk 0:00:25.5]} 39.
bxc5 {[%clk 0:01:07.2]} 39... Nc4+ {[%clk 0:00:25.8]} 40. Kd3 {[%clk 0:01:07.9]}
40... b5 {[%clk 0:00:26.4]} 41. Re6 {[%clk 0:00:59.4]} 41... Rc7 {[%clk
0:00:27]} 42. Kd4 {[%clk 0:00:52.5]} 42... Na3 {[%clk 0:00:24.5]} 43. Rxc6
{[%clk 0:00:44.9]} 43... Rxc6 {[%clk 0:00:22.9]} 44. Kxd5 {[%clk 0:00:45.7]}
44... Rc8 {[%clk 0:00:21]} 45. c6 {[%clk 0:00:46.2]} 45... Nc4 {[%clk
0:00:19.7]} 46. Bg4 {[%clk 0:00:43.9]} 46... Rd8+ {[%clk 0:00:13.2]} 47. Kc5
{[%clk 0:00:42.3]} 47... Ke7 {[%clk 0:00:09.9]} 48. c7 {[%clk 0:00:41.3]} 1-0

[Event "Late-Titled-Tuesday-Blitz-September-26-2023"]
[Site "Chess.com"]
[Date "2023.09.26"]
[Round "2"]
[White "DonkyDonkyDonkey"]
[Black "Hananmo"]
[Result "1-0"]
[WhiteElo "2757"]
[BlackElo "2508"]
[TimeControl "180+1"]
[EndTime "14:17:34 PDT"]
[Termination "DonkyDonkyDonkey won on time"]

1. d4 {[%clk 0:03:00.9]} 1... Nf6 {[%clk 0:02:56.6]} 2. Nc3 {[%clk 0:03:01.1]}
2... c5 {[%clk 0:02:40.6]} 3. d5 {[%clk 0:03:00.1]} 3... g6 {[%clk 0:02:37.4]}
4. e4 {[%clk 0:02:59.4]} 4... d6 {[%clk 0:02:35.9]} 5. g3 {[%clk 0:02:55.4]}
5... Bg7 {[%clk 0:02:34.4]} 6. Bg2 {[%clk 0:02:54.5]} 6... O-O {[%clk
0:02:32.9]} 7. Nge2 {[%clk 0:02:53.8]} 7... Na6 {[%clk 0:02:31.5]} 8. O-O {[%clk
0:02:52.9]} 8... Nc7 {[%clk 0:02:31.5]} 9. a4 {[%clk 0:02:51.8]} 9... b6 {[%clk
0:02:30.5]} 10. f4 {[%clk 0:02:39.5]} 10... a6 {[%clk 0:02:29.1]} 11. h3 {[%clk
0:01:51.8]} 11... Bb7 {[%clk 0:02:22.1]} 12. g4 {[%clk 0:01:41.5]} 12... b5
{[%clk 0:02:16.9]} 13. g5 {[%clk 0:01:40.8]} 13... Nd7 {[%clk 0:02:14.4]} 14. f5
{[%clk 0:01:39.1]} 14... b4 {[%clk 0:01:57.1]} 15. Nb1 {[%clk 0:01:37.8]} 15...
c4 {[%clk 0:01:54.8]} 16. Nd2 {[%clk 0:01:35.1]} 16... Ne5 {[%clk 0:01:25.3]}
17. Nd4 {[%clk 0:01:11.3]} 17... a5 {[%clk 0:01:19.3]} 18. N2f3 {[%clk
0:01:06.6]} 18... Nxf3+ {[%clk 0:01:00.7]} 19. Rxf3 {[%clk 0:01:07.5]} 19... Na6
{[%clk 0:01:00.1]} 20. Be3 {[%clk 0:01:02.5]} 20... Nc5 {[%clk 0:00:57.5]} 21.
Rf4 {[%clk 0:00:46.3]} 21... Rc8 {[%clk 0:00:38.8]} 22. Qf1 {[%clk 0:00:43.1]}
22... Ba6 {[%clk 0:00:26.6]} 23. Qf3 {[%clk 0:00:35.9]} 23... Nd7 {[%clk
0:00:16.9]} 24. Nc6 {[%clk 0:00:34.4]} 24... Rxc6 {[%clk 0:00:16.3]} 25. dxc6
{[%clk 0:00:34.3]} 25... Ne5 {[%clk 0:00:10.5]} 26. Qf2 {[%clk 0:00:34.7]} 26...
Nxc6 {[%clk 0:00:06.2]} 27. f6 {[%clk 0:00:33.1]} 27... exf6 {[%clk 0:00:04.7]}
28. gxf6 {[%clk 0:00:34]} 28... Bh8 {[%clk 0:00:02.6]} 29. Rd1 {[%clk
0:00:27.8]} 29... Ne5 {[%clk 0:00:01.3]} 30. Bd4 {[%clk 0:00:26.7]} 1-0

[Event "Late-Titled-Tuesday-Blitz-September-26-2023"]
[Site "Chess.com"]
[Date "2023.09.26"]
[Round "2"]
[White "Angry_Twin"]
[Black "GoltsevDmitry2000"]
[Result "1-0"]
[WhiteElo "2951"]
[BlackElo "2599"]
[TimeControl "180+1"]
[EndTime "14:17:36 PDT"]
[Termination "Angry_Twin won by checkmate"]

1. d4 {[%clk 0:03:00.9]} 1... Nf6 {[%clk 0:02:58.9]} 2. c4 {[%clk 0:03:01.5]}
2... e6 {[%clk 0:02:58.9]} 3. Nc3 {[%clk 0:03:02]} 3... d5 {[%clk 0:02:55]} 4.
cxd5 {[%clk 0:03:02.2]} 4... exd5 {[%clk 0:02:55.9]} 5. Bg5 {[%clk 0:03:02.5]}
5... c6 {[%clk 0:02:56.1]} 6. e3 {[%clk 0:03:02.8]} 6... Be6 {[%clk 0:02:53.5]}
7. Bd3 {[%clk 0:03:02.1]} 7... Nbd7 {[%clk 0:02:53.7]} 8. Nge2 {[%clk
0:03:02.5]} 8... h6 {[%clk 0:02:53.2]} 9. Bh4 {[%clk 0:02:59.8]} 9... Bd6 {[%clk
0:02:53.7]} 10. O-O {[%clk 0:02:58.9]} 10... Bxh2+ {[%clk 0:02:49.9]} 11. Kh1
{[%clk 0:02:54.5]} 11... Bd6 {[%clk 0:02:49.7]} 12. f3 {[%clk 0:02:45.1]} 12...
g5 {[%clk 0:02:39.6]} 13. Bf2 {[%clk 0:02:42.3]} 13... h5 {[%clk 0:02:35.8]} 14.
e4 {[%clk 0:02:38.4]} 14... dxe4 {[%clk 0:02:35.4]} 15. fxe4 {[%clk 0:02:38.8]}
15... Ng4 {[%clk 0:02:21]} 16. d5 {[%clk 0:02:36.8]} 16... Nxf2+ {[%clk
0:01:43.3]} 17. Rxf2 {[%clk 0:02:35.8]} 17... Bg4 {[%clk 0:01:44]} 18. dxc6
{[%clk 0:02:20.6]} 18... bxc6 {[%clk 0:01:40.9]} 19. Qa4 {[%clk 0:02:20.5]}
19... Ne5 {[%clk 0:01:30.5]} 20. Bc2 {[%clk 0:02:09.5]} 20... h4 {[%clk
0:01:20.8]} 21. Raf1 {[%clk 0:02:08.9]} 21... h3 {[%clk 0:01:14.4]} 22. g3
{[%clk 0:02:09.2]} 22... h2 {[%clk 0:01:00.4]} 23. Nd4 {[%clk 0:02:02]} 23...
Qb6 {[%clk 0:00:44.7]} 24. Nd5 {[%clk 0:01:53.4]} 24... Qc5 {[%clk 0:00:26.6]}
25. Nf6+ {[%clk 0:01:53.4]} 25... Kd8 {[%clk 0:00:18.8]} 26. Nxg4 {[%clk
0:01:53.8]} 26... Nxg4 {[%clk 0:00:19.7]} 27. Rxf7 {[%clk 0:01:47.4]} 27... Ke8
{[%clk 0:00:03]} 28. Ne6 {[%clk 0:01:11.7]} 28... Qg1+ {[%clk 0:00:02.6]} 29.
Rxg1 {[%clk 0:01:12.3]} 29... hxg1=Q+ {[%clk 0:00:03.5]} 30. Kxg1 {[%clk
0:01:13.1]} 30... Kxf7 {[%clk 0:00:04.1]} 31. Nxg5+ {[%clk 0:00:38.3]} 31... Ke7
{[%clk 0:00:04]} 32. Qc4 {[%clk 0:00:34.5]} 32... Rh6 {[%clk 0:00:03.8]} 33.
Qf7+ {[%clk 0:00:33.6]} 33... Kd8 {[%clk 0:00:03.9]} 34. Ne6+ {[%clk 0:00:30.6]}
34... Kc8 {[%clk 0:00:03.6]} 35. Qe8+ {[%clk 0:00:28.5]} 35... Kb7 {[%clk
0:00:04.1]} 36. Qd7+ {[%clk 0:00:29.1]} 36... Kb6 {[%clk 0:00:04.6]} 37. Qxd6
{[%clk 0:00:27.5]} 37... Rah8 {[%clk 0:00:05.2]} 38. Qb4+ {[%clk 0:00:27.8]}
38... Ka6 {[%clk 0:00:04.7]} 39. Nc5# {[%clk 0:00:28.5]} 1-0